bitfinex-derivatives/quotes_ETHF0:USTF0_20210403
["timestamp","ask_amount","ask_price","bid_price","bid_amount"]
[1617451139081,2.90695,2097.0,2096.9,2.90695]
[1617451139683,2.90695,2097.0,2095.6,7.00203773]
[1617451140285,2.90695,2097.0,2095.6,2.0]
[1617451141385,79.4915,2097.2,2096.2,2.90695]
[1617451141585,4.1254,2097.4,2096.2,2.90695]
[1617451141785,4.1254,2097.4,2096.5,57.2187]
[1617451143086,2.0,2097.4,2096.5,57.2187]
[1617451143287,2.0,2097.5,2096.8,2.90695]
[1617451143486,2.0,2097.5,2096.5,57.2187]
[1617451143686,2.0,2097.5,2096.5,58.1861]
[1617451143986,2.0,2097.5,2096.5,57.2187]
[1617451144788,2.0,2097.5,2096.5,58.1848]
[1617451145290,2.90695,2096.6,2096.5,61.09175]
[1617451145992,2.90695,2096.6,2096.5,60.12565]
[1617451146691,5.05855,2096.6,2096.5,60.12565]
[1617451148096,5.05855,2096.6,2095.6,5.00056609]
[1617451148295,5.05855,2096.6,2096.0,61.9079]
[1617451149595,2.1516,2096.6,2096.1,2.90695]
[1617451150297,2.1516,2096.6,2096.0,61.9079]
[1617451151398,2.1516,2096.6,2096.1,2.90695]
[1617451151898,2.1516,2096.6,2096.0,61.9079]
[1617451152100,75.1015,2097.2,2096.0,61.9079]
[1617451152301,2.0,2097.1,2096.0,61.9079]
[1617451153503,2.90695,2096.1,2096.0,61.9079]
[1617451153702,4.82605,2096.1,2095.1,2.90695]
[1617451154000,4.82605,2096.1,2094.9,73.62658572]
[1617451154301,4.82605,2096.1,2094.9,68.623]
[1617451154500,4.82605,2096.1,2095.0,5.01184715]
[1617451155202,4.82605,2096.1,2094.9,73.63495843]
[1617451155401,2.90695,2095.0,2094.9,73.63495843]
[1617451155602,4.58675,2095.0,2094.9,73.63495843]
[1617451156005,4.58675,2095.0,2094.9,68.623]
[1617451156202,4.58675,2095.0,2094.8,5.01224096]
[1617451156402,4.58675,2095.0,2094.7,5.01225838]
[1617451157505,4.58675,2095.0,2094.6,55.7402]
[1617451159408,2.90695,2095.0,2094.6,55.7402]
[1617451159610,2.90695,2094.7,2094.6,60.75287028]
[1617451159810,61.4064,2095.8,2094.6,60.75287028]
[1617451160010,61.4064,2095.8,2094.6,55.7402]
[1617451160310,61.4064,2095.8,2094.6,60.75276975]
[1617451161115,61.4064,2095.8,2094.6,55.7402]
[1617451161512,61.4064,2095.8,2094.7,2.90695]
[1617451162415,63.9774,2095.8,2094.6,55.7402]
[1617451163517,2.90695,2094.7,2094.6,55.7402]
[1617451166622,12.90695,2094.7,2094.6,55.7402]
[1617451166823,15.13615,2094.7,2094.6,55.7402]
[1617451172631,12.90695,2094.7,2094.6,55.7402]
[1617451181044,14.46445,2094.7,2094.6,55.7402]
[1617451181744,14.46445,2094.7,2094.6,56.6894]
[1617451182245,14.46445,2094.7,2094.6,55.7402]
[1617451184248,12.90695,2094.7,2094.6,55.7402]
[1617451185350,10.0,2094.7,2094.6,55.7402]
[1617451187953,12.90695,2094.7,2093.8,7.01047956]
[1617451188154,12.90695,2094.7,2093.9,58.8859]
[1617451189855,10.0,2094.7,2094.0,2.90695]
[1617451191758,2.90695,2094.1,2094.0,2.90695]
[1617451191959,5.40965,2094.1,2094.0,2.90695]
[1617451196869,5.40965,2094.1,2093.6,2.0]
[1617451197767,2.5027,2094.1,2093.7,2.90695]
[1617451197968,10.0,2094.7,2093.7,2.90695]
[1617451198268,2.0,2094.6,2093.7,2.90695]
[1617451199771,2.90695,2093.8,2093.7,2.90695]
[1617451200070,5.09675,2093.8,2093.7,2.90695]
[1617451200270,5.09675,2093.8,2093.6,2.0]
[1617451201975,2.90695,2093.8,2093.6,2.0]
[1617451204075,2.90695,2093.8,2093.7,4.53465]
[1617451204474,10.0,2094.7,2093.7,4.53465]
[1617451206075,10.0,2094.7,2094.6,4.88045]
[1617451206476,10.0,2094.7,2094.6,1.9735]
[1617451206876,10.9451,2094.7,2094.6,2.9259]
[1617451207879,13.85205,2094.7,2094.6,5.83285]
[1617451208681,13.85205,2094.7,2094.6,0.9524]
[1617451208884,13.85205,2094.7,2093.6,2.0]
[1617451209082,15.45265,2094.7,2093.6,2.0]
[1617451209683,14.50755,2094.7,2093.6,2.0]
[1617451209882,11.6006,2094.7,2093.8,2.90695]
[1617451211287,10.0,2094.7,2093.8,2.90695]
[1617451211889,2.90695,2093.9,2093.8,2.90695]
[1617451212087,0.9437,2094.1,2093.8,2.90695]
[1617451212287,10.0,2094.7,2093.8,3.04733654]
[1617451212690,10.0,2094.7,2093.9,0.14038465]
[1617451213289,10.0,2094.7,2093.9,2.14038465]
[1617451213489,10.0,2094.7,2093.9,0.14038465]
[1617451213690,10.0,2094.7,2093.8,2.90695]
[1617451213889,10.0,2094.7,2094.6,2.90695]
[1617451214091,10.0,2094.7,2094.6,6.31645]
[1617451215191,10.0,2094.7,2094.6,5.37135]
[1617451215590,10.0,2094.7,2094.6,2.90695]
[1617451215991,12.90695,2094.7,2094.6,2.90695]
[1617451219497,12.90695,2094.7,2094.6,4.63415]
[1617451219798,10.0,2094.7,2094.6,4.63415]
[1617451222197,10.0,2094.7,2094.6,1.7272]
[1617451223901,10.0,2094.7,2094.4,2.90695]
[1617451225903,10.0,2094.7,2094.4,4.97325]
[1617451226804,10.0,2094.7,2094.4,9.98051961]
[1617451227004,10.0,2094.7,2094.4,4.97325]
[1617451227502,9.5269,2094.7,2094.4,4.97325]
[1617451227704,9.2079,2094.7,2094.5,5.0069229]
[1617451227904,9.2079,2094.7,2094.5,5.14725201]
[1617451228106,5.3293,2094.7,2094.6,6.11882601]
[1617451228405,3.6344,2094.7,2094.6,0.14032596]
[1617451229806,3.6344,2094.7,2094.6,6.25259768]
[1617451232010,3.4013,2094.7,2094.6,6.25259768]
[1617451232509,3.4013,2094.7,2094.6,0.14032596]
[1617451232809,3.4013,2094.7,2094.6,6.25297323]
[1617451233211,3.3469,2094.7,2094.6,6.25297323]
[1617451233911,3.3469,2094.7,2094.6,7.38513352]
[1617451234110,3.2788,2094.7,2094.6,7.38513352]
[1617451234410,3.2788,2094.7,2094.6,0.14032596]
[1617451234911,3.2788,2094.7,2094.6,2.25252596]
[1617451235114,3.2788,2094.7,2094.6,4.25252596]
[1617451236113,2.9162,2094.7,2094.6,4.25252596]
[1617451239918,2.9162,2094.7,2094.6,0.14032596]
[1617451240219,2.9162,2094.7,2094.5,2.0]
[1617451241220,2.9162,2094.7,2094.6,7.26136059]
[1617451241820,2.9162,2094.7,2094.5,2.0]
[1617451242421,2.9162,2094.7,2094.6,7.26124794]
[1617451242721,2.9162,2094.7,2094.5,2.0]
[1617451248328,2.9162,2094.7,2094.6,7.2601443]
[1617451248828,2.9162,2094.7,2094.5,2.0]
[1617451253240,2.9162,2094.7,2094.6,0.14032618]
[1617451253537,2.5024,2094.7,2094.6,0.14032618]
[1617451253939,2.4441,2094.7,2094.6,0.14032618]
[1617451254138,2.34,2094.7,2094.6,0.14032618]
[1617451256450,2.34,2094.7,2094.5,0.14032475]
[1617451257643,2.34,2094.7,2094.6,7.25784421]
[1617451258243,2.34,2094.7,2094.6,7.39816879]
[1617451258444,2.34,2094.7,2094.6,0.14032458]
[1617451258743,2.34,2094.7,2094.4,2.90695]
[1617451259245,2.34,2094.7,2094.5,0.14032774]
[1617451259545,2.34,2094.7,2094.6,7.25366594]
[1617451262145,2.34,2094.7,2094.5,7.24792554]
[1617451262545,2.34,2094.7,2094.4,2.90695]
[1617451262546,2.34,2094.7,2094.6,7.24989064]
[1617451263145,2.34,2094.7,2094.5,7.25468078]
[1617451263345,2.34,2094.7,2094.6,0.14032948]
[1617451266848,2.34,2094.7,2094.6,7.39531588]
[1617451267650,2.34,2094.7,2094.6,9.39531588]
[1617451268252,1.6291,2094.7,2094.6,2.14032948]
[1617451269953,1.2827,2094.7,2094.6,2.14032948]
[1617451270655,1.2827,2094.7,2094.6,0.14032948]
[1617451270854,1.2827,2094.7,2094.6,2.14032948]
[1617451272057,0.6075,2094.7,2094.6,2.14032948]
[1617451272957,0.2862,2094.7,2094.6,2.14032948]
[1617451273361,0.0767,2094.7,2094.6,2.14032948]
[1617451273558,0.0013,2094.7,2094.6,2.14032948]
[1617451277961,0.0013,2094.7,2094.6,0.14032948]
[1617451278162,0.0013,2094.7,2094.6,2.14032948]
[1617451281268,0.0013,2094.7,2094.6,0.14032948]
[1617451281467,0.0013,2094.7,2094.6,2.14032948]
[1617451284575,0.0013,2094.7,2094.6,0.14032948]
[1617451284775,0.0013,2094.7,2094.6,2.14032948]
[1617451290887,0.0013,2094.7,2094.6,0.14032948]
[1617451291087,0.0013,2094.7,2094.6,2.14032948]
[1617451291287,2.40755,2095.2,2094.6,2.14032948]
[1617451291489,13.0,2094.7,2094.6,3.79622948]
[1617451292090,3.6186,2094.7,2094.6,3.79622948]
[1617451292289,5.098,2097.3,2094.7,67.7171]
[1617451292491,7.669,2097.3,2094.8,2.0]
[1617451292789,7.669,2097.3,2096.4,2.90695]
[1617451292990,7.669,2097.3,2096.9,76.0891]
[1617451293590,7.669,2097.3,2096.9,66.0891]
[1617451294793,2.90695,2097.0,2096.9,66.0891]
[1617451296797,2.90695,2097.0,2096.9,68.99605]
[1617451297199,2.90695,2097.0,2096.9,74.01421253]
[1617451297497,2.90695,2097.0,2096.9,68.99605]
[1617451298498,2.90695,2097.0,2096.9,75.12812842]
[1617451299500,2.90695,2097.0,2096.9,68.99605]
[1617451301404,2.17795,2097.0,2096.9,68.99605]
[1617451309718,2.17795,2097.0,2096.9,2.90695]
[1617451312322,2.17795,2097.0,2096.9,72.60995]
[1617451323044,2.17795,2097.0,2096.9,2.90695]
[1617451324043,2.571,2098.2,2096.9,4.90695]
[1617451324641,2.571,2098.2,2097.1,4.346]
[1617451325041,2.571,2098.2,2097.1,79.5742]
[1617451325341,2.571,2098.2,2097.7,5.35485]
[1617451326043,2.571,2098.2,2098.1,63.0533]
[1617451327246,5.47795,2098.2,2098.1,63.0533]
[1617451328649,5.47795,2098.2,2097.7,2.90695]
[1617451329250,2.90695,2097.8,2097.1,2.90695]
[1617451329451,4.77605,2097.8,2097.1,2.90695]
[1617451329652,4.77605,2097.8,2096.2,6.98776957]
[1617451329851,73.0855,2097.7,2096.2,6.98776957]
[1617451330051,73.0855,2097.7,2096.2,2.0]
[1617451331255,73.0855,2097.7,2097.3,2.90695]
[1617451331957,1.8691,2097.8,2097.3,2.90695]
[1617451333256,2.90695,2097.4,2097.3,2.90695]
[1617451339665,2.90695,2097.4,2097.0,58.9201]
[1617451341367,2.90695,2097.1,2097.0,58.9201]
[1617451341569,4.78035,2097.1,2097.0,58.9201]
[1617451345070,4.78035,2097.1,2096.9,2.90695]
[1617451349478,2.90695,2097.1,2096.9,2.90695]
[1617451349778,2.90695,2097.1,2097.0,71.9466]
[1617451370201,2.90695,2097.1,2097.0,76.95695733]
[1617451370501,2.90695,2097.1,2097.0,71.9466]
[1617451370802,2.90695,2097.1,2097.0,76.95641646]
[1617451371204,2.90695,2097.1,2097.0,71.9466]
[1617451374305,4.56765,2097.1,2097.0,71.9466]
[1617451376811,4.56765,2097.1,2096.9,7.91951809]
[1617451377012,4.56765,2097.1,2096.8,5.01358612]
[1617451377416,4.56765,2097.1,2096.6,5.01644015]
[1617451377613,2.0,2097.0,2096.6,5.01644015]
[1617451377813,2.90695,2096.5,2096.4,5.01931388]
[1617451378014,5.27605,2096.5,2096.3,5.02159895]
[1617451378416,5.27605,2096.5,2096.2,5.02278837]
[1617451378815,5.27605,2096.5,2096.4,6.16194195]
[1617451379316,5.27605,2096.5,2096.3,6.16214577]
[1617451380819,5.27605,2096.5,2096.4,6.16186001]
[1617451381116,5.27605,2096.5,2096.1,7.2811938]
[1617451381816,2.90695,2096.2,2096.1,10.1881438]
[1617451383120,2.90695,2096.2,2096.1,7.2811938]
[1617451384423,62.8096,2096.7,2096.1,7.2811938]
[1617451384723,62.8096,2096.7,2096.1,9.1504938]
[1617451384923,62.8096,2096.7,2096.3,7.27672322]
[1617451385524,62.8096,2096.7,2096.6,6.15864616]
[1617451385924,65.71655,2096.7,2096.6,6.15864616]
[1617451386126,65.71655,2096.7,2096.5,6.16040146]
[1617451387129,65.71655,2096.7,2096.3,5.03022198]
[1617451388028,2.90695,2096.4,2096.3,5.03022198]
[1617451388528,2.90695,2096.4,2096.2,6.14619501]
[1617451389731,4.42695,2096.4,2096.2,6.14619501]
[1617451390232,4.42695,2096.4,2096.1,5.03033286]
[1617451390432,4.42695,2096.4,2096.0,5.03038368]
[1617451391132,55.1571,2096.2,2096.0,5.03038368]
[1617451392234,2.90695,2096.1,2096.0,5.03038368]
[1617451392833,2.90695,2096.1,2095.8,6.14824672]
[1617451393234,2.90695,2096.1,2096.0,5.03041182]
[1617451393536,2.90695,2096.1,2095.5,2.90695]
[1617451393537,2.90695,2096.1,2095.9,6.14828492]
[1617451393839,2.90695,2096.1,2096.0,5.03044098]
[1617451394239,2.90695,2096.1,2095.9,5.0305719]
[1617451394638,2.90695,2096.1,2096.0,5.0305487]
[1617451394938,2.90695,2096.1,2095.9,5.03054408]
[1617451395241,2.90695,2096.1,2096.0,5.03050599]
[1617451396941,2.90695,2096.1,2095.9,6.14829897]
[1617451397843,2.90695,2096.1,2096.0,5.02419816]
[1617451398144,2.90695,2096.1,2095.9,7.93126085]
[1617451398345,2.90695,2096.1,2095.9,2.90695]
[1617451398745,2.90695,2096.1,2095.9,7.93111119]
[1617451399948,2.90695,2096.1,2095.9,2.90695]
[1617451400151,2.90695,2096.1,2095.8,5.02424354]
[1617451400948,2.90695,2096.1,2095.7,5.02311216]
[1617451401350,2.90695,2096.1,2095.8,5.02312142]
[1617451401851,2.90695,2096.1,2095.5,6.1393593]
[1617451401852,2.90695,2096.1,2095.7,5.02313568]
[1617451402152,2.90695,2095.8,2095.7,5.02313568]
[1617451402350,5.33575,2095.8,2095.7,5.02313568]
[1617451404352,5.33575,2095.8,2095.5,9.0463093]
[1617451404353,5.33575,2095.8,2095.6,5.02326842]
[1617451405760,78.9908,2095.7,2095.6,5.02326842]
[1617451407759,78.9908,2095.7,2095.5,9.04667926]
[1617451409062,78.9908,2095.7,2095.5,7.92528308]
[1617451409762,80.7657,2095.7,2095.5,7.92528308]
[1617451410064,80.7657,2095.7,2095.5,2.90695]
[1617451413369,1.7749,2095.7,2095.5,2.90695]
[1617451415274,2.90695,2095.8,2095.5,2.90695]
[1617451415472,62.2056,2095.6,2095.5,2.90695]
[1617451416872,62.2056,2095.6,2095.5,7.92550764]
[1617451417373,62.2056,2095.6,2095.5,2.90695]
[1617451430598,5.29875,2095.8,2095.5,2.90695]
[1617451431700,2.90695,2095.8,2095.5,2.90695]
[1617451439106,56.8422,2095.6,2095.5,2.90695]
[1617451440206,58.5655,2095.6,2095.5,2.90695]
[1617451443116,1.7233,2095.6,2095.5,2.90695]
[1617451443319,3.7233,2095.6,2095.0,5.01413228]
[1617451443617,3.7233,2095.6,2094.9,5.01301004]
[1617451443819,3.7233,2095.6,2094.2,7.2410145]
[1617451443820,3.7233,2095.6,2094.8,5.01327338]
[1617451444021,55.5572,2094.9,2094.8,5.01327338]
[1617451444224,55.5572,2094.9,2093.8,69.795]
[1617451444225,55.5572,2094.9,2094.7,5.01323254]
[1617451444422,2.90695,2094.8,2094.7,5.01323254]
[1617451444724,2.90695,2094.8,2094.6,6.12731305]
[1617451444923,2.90695,2094.8,2094.7,5.01354299]
[1617451445324,2.90695,2094.8,2094.6,5.01373041]
[1617451445524,2.90695,2094.8,2094.5,5.01383334]
[1617451446425,2.90695,2094.8,2094.4,7.92085515]
[1617451448127,2.90695,2094.8,2094.4,2.90695]
[1617451448326,2.90695,2094.8,2094.4,7.92609943]
[1617451448629,5.21975,2094.5,2094.4,2.90695]
[1617451458341,5.21975,2094.5,2093.9,5.01074584]
[1617451458542,2.90695,2094.0,2093.8,7.01095276]
[1617451459343,2.90695,2094.0,2093.8,2.0]
[1617451459544,4.85655,2094.0,2093.8,2.0]
[1617451460046,4.85655,2094.0,2093.9,6.13874825]
[1617451461045,4.85655,2094.0,2093.8,2.0]
[1617451461245,64.3137,2093.9,2093.8,2.0]
[1617451461745,64.3137,2093.9,2093.5,10.16183429]
[1617451462647,2.90695,2093.6,2093.5,10.16183429]
[1617451463147,0.90695,2093.6,2093.5,10.30221762]
[1617451463848,0.90695,2093.6,2093.5,2.90695]
[1617451465451,0.90695,2093.6,2093.5,9.03704578]
[1617451466054,0.90695,2093.6,2093.5,2.90695]
[1617451467457,0.90695,2093.6,2093.5,9.0372098]
[1617451470358,66.6957,2093.8,2093.5,2.90695]
[1617451471057,66.6957,2093.8,2093.6,6.12998042]
[1617451471257,2.90695,2094.1,2093.6,6.12998042]
[1617451471558,2.90695,2094.1,2093.7,69.5185]
[1617451471757,2.90695,2094.1,2093.8,5.01556578]
[1617451472759,2.90695,2094.1,2094.0,2.90695]
[1617451474260,2.90695,2094.1,2093.8,5.01556578]
[1617451474760,2.90695,2094.1,2093.9,2.90695]
[1617451475062,58.1888,2094.0,2093.9,2.90695]
[1617451487174,2.90695,2094.1,2093.9,2.90695]
[1617451488782,65.6579,2094.0,2093.9,2.90695]
[1617451499890,4.90695,2094.1,2093.9,2.90695]
[1617451500190,4.90695,2094.1,2093.4,6.13209321]
[1617451500191,4.90695,2094.1,2093.4,5.01750792]
[1617451500390,71.9905,2093.5,2093.4,5.01750792]
[1617451500592,74.0544,2093.5,2093.4,5.01750792]
[1617451500992,76.96135,2093.5,2093.4,5.01750792]
[1617451501292,4.97085,2093.5,2093.4,5.01750792]
[1617451502493,4.97085,2093.5,2093.3,6.13239355]
[1617451502894,4.97085,2093.5,2093.4,2.90695]
[1617451503098,4.97085,2093.5,2093.4,7.92450294]
[1617451503495,2.90695,2093.5,2093.4,7.92450294]
[1617451504198,2.90695,2093.5,2093.4,2.90695]
[1617451504397,2.90695,2093.5,2093.4,3.04737726]
[1617451504695,2.90695,2093.5,2093.4,2.90695]
[1617451505195,2.90695,2093.5,2093.4,7.92433733]
[1617451505597,2.90695,2093.5,2093.4,2.90695]
[1617451506496,63.22585,2093.5,2093.4,2.90695]
[1617451508298,65.24615,2093.5,2093.4,2.90695]
[1617451509204,4.92725,2093.5,2093.2,5.01765903]
[1617451509402,72.7608,2093.2,2092.9,5.01814125]
[1617451509803,72.7608,2093.2,2092.6,5.01071843]
[1617451510804,72.7608,2093.2,2092.4,5.01126946]
[1617451511005,2.90695,2092.7,2092.4,2.90695]
[1617451511305,4.48475,2092.7,2092.4,0.11105]
[1617451511504,4.48475,2092.7,2092.1,6.13054888]
[1617451511505,2.0,2092.6,2092.1,5.01626945]
[1617451511706,2.0,2092.6,2091.7,9.01702094]
[1617451511904,68.1814,2092.0,2091.7,9.01702094]
[1617451512306,68.1814,2092.0,2091.7,4.0]
[1617451513107,2.90695,2091.8,2091.7,4.0]
[1617451513908,2.90695,2091.8,2091.4,5.01746669]
[1617451514310,2.90695,2091.8,2091.3,5.01776952]
[1617451515008,2.90695,2091.4,2091.3,5.01776952]
[1617451515210,5.37355,2091.4,2091.3,5.01776952]
[1617451516112,5.37355,2091.4,2091.2,5.01776887]
[1617451517916,5.37355,2091.4,2091.3,5.0176762]
[1617451518116,2.90695,2091.4,2091.3,5.0176762]
[1617451518415,2.90695,2091.4,2091.2,5.01773103]
[1617451518615,2.90695,2091.4,2091.3,5.01767021]
[1617451519018,2.90695,2091.4,2091.3,7.92462021]
[1617451519617,2.90695,2091.4,2091.3,69.98402021]
[1617451519918,2.90695,2091.4,2091.3,64.96635]
[1617451520117,2.90695,2091.4,2091.3,62.0594]
[1617451520618,2.90695,2091.4,2090.3,2.0]
[1617451520820,2.90695,2091.4,2090.4,73.166]
[1617451521119,1.7203,2091.8,2090.8,2.90695]
[1617451521723,58.2234,2091.5,2090.8,2.90695]
[1617451522422,58.2234,2091.5,2089.7,2.0]
[1617451523023,2.90695,2090.5,2090.4,2.90695]
[1617451524025,2.90695,2090.5,2089.7,2.0]
[1617451525030,2.3004,2090.9,2090.1,2.90695]
[1617451526431,2.3004,2090.9,2089.6,8.0]
[1617451526631,76.5845,2090.4,2089.6,8.0]
[1617451526933,78.4873,2090.4,2089.6,8.0]
[1617451527132,78.4873,2090.4,2089.7,2.90695]
[1617451528535,76.5845,2090.4,2089.7,2.90695]
[1617451528835,53.87,2091.2,2089.7,2.90695]
[1617451529033,2.90695,2089.8,2089.7,2.90695]
[1617451532337,2.90695,2089.8,2089.1,61.7241]
[1617451533139,62.3411,2090.3,2089.5,8.0]
[1617451535039,2.90695,2089.6,2089.5,8.0]
[1617451544553,4.90695,2089.6,2089.5,8.0]
[1617451545954,4.90695,2089.6,2089.5,7.0402]
[1617451546355,4.90695,2089.6,2089.5,6.1002]
[1617451546655,70.8572,2088.9,2088.1,2.90695]
[1617451546956,72.4144,2088.9,2088.1,2.90695]
[1617451547253,4.58035,2088.2,2088.1,2.90695]
[1617451547855,4.58035,2088.2,2086.8,2.9609]
[1617451548959,4.58035,2088.2,2086.8,0.9609]
[1617451549159,1.6734,2088.2,2087.9,2.90695]
[1617451549959,67.7515,2088.1,2087.9,2.90695]
[1617451551160,2.90695,2088.0,2087.9,2.90695]
[1617451553260,2.90695,2088.0,2086.9,2.0]
[1617451553261,80.0337,2089.2,2088.6,2.90695]
[1617451553460,80.0337,2089.2,2087.8,79.1011]
[1617451553961,80.0337,2089.2,2087.8,80.0668]
[1617451554663,80.0337,2089.2,2087.8,79.1011]
[1617451555364,80.0337,2089.2,2088.3,3.86535]
[1617451555563,80.0337,2089.2,2088.3,2.90695]
[1617451557263,2.90695,2088.4,2088.3,2.90695]
[1617451557664,80.0337,2089.2,2088.3,2.90695]
[1617451558165,80.0337,2089.2,2088.3,6.63865]
[1617451558867,4.705335,2090.0,2088.3,6.63865]
[1617451559067,4.705335,2090.0,2088.8,63.7442]
[1617451559269,4.705335,2090.0,2089.2,2.90695]
[1617451560875,4.705335,2090.0,2089.2,3.87685]
[1617451561272,2.90695,2089.3,2089.2,3.87685]
[1617451561572,2.90695,2089.3,2089.2,2.90695]
[1617451562472,2.90695,2089.3,2089.2,3.85925]
[1617451562671,2.90695,2089.3,2089.2,2.90695]
[1617451564273,2.90695,2089.3,2089.2,3.86605]
[1617451564874,2.90695,2089.3,2089.2,2.90695]
[1617451567078,72.62775,2089.3,2088.6,0.9513]
[1617451567278,2.90695,2088.4,2088.3,2.90695]
[1617451567578,2.5031,2089.3,2088.3,2.90695]
[1617451567779,59.7507,2089.0,2088.3,2.90695]
[1617451569279,2.90695,2088.4,2087.5,0.9454]
[1617451569480,2.90695,2088.4,2087.3,68.6868]
[1617451571484,2.1328,2088.7,2088.0,2.90695]
[1617451571683,2.1328,2088.7,2086.6,64.11]
[1617451571684,59.7605,2088.3,2086.6,64.11]
[1617451573284,59.7605,2088.3,2087.6,2.90695]
[1617451575286,2.90695,2087.7,2087.6,2.90695]
[1617451575488,4.48425,2087.7,2087.6,2.90695]
[1617451575989,4.48425,2087.7,2086.6,64.11]
[1617451576188,4.48425,2087.7,2085.6,2.9451]
[1617451576390,69.2505,2087.4,2085.8,2.0]
[1617451577389,69.2505,2087.4,2087.0,2.90695]
[1617451579389,2.90695,2087.1,2087.0,2.90695]
[1617451579589,4.79815,2087.1,2085.7,2.0]
[1617451579889,4.79815,2087.1,2085.6,73.3227]
[1617451579890,4.79815,2087.1,2085.6,72.3552]
[1617451580190,4.79815,2087.1,2085.0,16.0]
[1617451580389,68.6561,2086.5,2085.0,16.0]
[1617451580591,2.0,2087.0,2085.0,16.0]
[1617451580791,68.6702,2086.0,2085.0,16.0]
[1617451581194,70.4333,2086.0,2085.0,16.0]
[1617451581394,72.4333,2086.0,2085.5,2.90695]
[1617451581795,72.4333,2086.0,2085.0,16.9455]
[1617451581995,72.4333,2086.0,2085.0,16.0]
[1617451583396,2.90695,2085.1,2085.0,18.90695]
[1617451583596,4.87495,2085.1,2085.0,18.90695]
[1617451583798,1.968,2085.1,2085.0,18.90695]
[1617451584498,72.4333,2086.0,2085.0,18.90695]
[1617451584698,1.7631,2086.0,2085.0,18.90695]
[1617451584899,2.0064,2086.5,2085.1,75.2573]
[1617451585498,77.8896,2086.8,2086.2,2.90695]
[1617451585698,77.8896,2086.8,2085.1,76.8787]
[1617451587101,77.8896,2086.8,2085.1,75.2573]
[1617451587800,77.8896,2086.8,2085.1,76.2209]
[1617451588201,77.8896,2086.8,2085.1,75.2573]
[1617451590503,77.8896,2086.8,2085.1,73.2573]
[1617451591408,77.8896,2086.8,2086.3,2.90695]
[1617451591706,2.0,2087.4,2086.3,2.90695]
[1617451592208,2.0,2087.9,2086.3,2.90695]
[1617451592908,2.9557,2087.9,2086.3,2.90695]
[1617451593109,0.31943948,2087.8,2086.3,2.90695]
[1617451593311,2.59273948,2087.8,2086.3,2.90695]
[1617451593511,2.90695,2086.4,2085.0,16.0]
[1617451593711,2.90695,2086.4,2085.5,77.8484]
[1617451594114,73.6984,2087.1,2085.5,77.8484]
[1617451595013,71.7156,2087.1,2085.6,3.6148]
[1617451595517,71.7156,2087.1,2086.7,2.90695]
[1617451595917,71.7156,2087.1,2086.2,1.8264]
[1617451596717,71.7156,2087.1,2085.5,77.8484]
[1617451597017,2.0,2087.1,2085.0,16.0]
[1617451597518,71.1179,2086.4,2085.7,2.90695]
[1617451599518,2.90695,2085.8,2085.7,2.90695]
[1617451600519,71.1179,2086.4,2085.7,2.90695]
[1617451600720,69.3609,2086.4,2085.7,2.90695]
[1617451601523,4.43065,2085.8,2085.7,2.90695]
[1617451602624,2.90695,2085.8,2085.7,2.90695]
[1617451606827,2.90695,2085.8,2085.0,16.0]
[1617451607527,2.90695,2085.8,2085.5,2.90695]
[1617451607931,2.90695,2085.8,2085.0,16.0]
[1617451608130,73.5579,2085.3,2085.0,16.0]
[1617451608330,75.8055,2085.3,2085.0,16.0]
[1617451609632,75.8055,2085.3,2085.2,2.90695]
[1617451611735,5.15455,2085.3,2085.2,2.90695]
[1617451612336,63.4495,2085.8,2085.2,2.90695]
[1617451612937,23.0,2086.3,2085.2,3.86355]
[1617451613138,23.0,2086.3,2085.2,4.90695]
[1617451613538,23.0,2086.3,2086.0,2.90695]
[1617451613739,23.0,2086.3,2085.2,2.0]
[1617451615540,23.0,2086.3,2085.8,2.90695]
[1617451615939,23.0,2086.3,2085.8,5.04295]
[1617451617642,23.0,2086.3,2086.2,2.90695]
[1617451618641,23.0,2086.3,2086.2,4.90695]
[1617451620645,23.0,2086.3,2086.2,2.90695]
[1617451623751,25.0729,2086.3,2085.7,68.8754]
[1617451625551,25.0729,2086.3,2086.0,2.90695]
[1617451625751,25.0729,2086.3,2085.0,18.0]
[1617451625951,25.0729,2086.3,2085.0,16.0]
[1617451629561,25.0729,2086.3,2085.6,2.90695]
[1617451631162,23.0,2086.3,2085.6,2.90695]
[1617451631769,23.0,2086.3,2086.0,2.90695]
[1617451635768,23.0,2086.3,2086.1,0.14081737]
[1617451636372,23.0,2086.3,2086.1,2.14081737]
[1617451636774,23.0,2086.3,2086.2,0.14081508]
[1617451640675,80.2862,2087.8,2086.1,2.2280136]
[1617451640975,80.2862,2087.8,2086.2,6.09931569]
[1617451641178,15.9569,2088.7,2086.2,8.09931569]
[1617451641376,15.9569,2088.7,2086.6,2.0]
[1617451641576,13.9569,2088.7,2086.6,2.0]
[1617451641777,13.9569,2088.7,2088.5,5.42585]
[1617451643678,2.90695,2088.6,2088.5,5.42585]
[1617451644177,2.0,2089.5,2088.5,5.42585]
[1617451644678,13.5018,2089.9,2088.5,5.42585]
[1617451645678,13.5018,2089.9,2088.9,2.90695]
[1617451646378,15.5018,2089.9,2088.9,2.90695]
[1617451647080,15.5018,2089.9,2087.5,2.0]
[1617451647282,77.5742,2089.6,2087.0,77.552]
[1617451647582,2.0,2089.5,2087.4,0.14074144]
[1617451647781,13.5018,2089.9,2088.5,2.90695]
[1617451647983,15.5018,2089.9,2088.5,4.50085]